[Event "101st Irish Championship 2022"]
[Site "Dublin"]
[Date "2022.07.05"]
[Round "2.3"]
[White "Daly, Colm"]
[Black "Kanyamarala, Tarun"]
[Result "0-1"]
[ECO "A13"]
[WhiteElo "2190"]
[BlackElo "2379"]
[Annotator "TA"]
[PlyCount "166"]
[EventDate "2022.07.05"]
[EventType "swiss"]
[EventCountry "IRL"]
[SourceTitle "playchess.com"]
[Source "ChessBase"]
[SourceQuality "1"]
[TimeControl "40/6300+30:1800+30"]

{[%evp 13,166,0,9,0,0,0,0,0,-3,0,-1,-72,-58,-205,-212,-143,-154,-218,-218,-593,-595,-580,-528,-664,-660,-650,-582,-497,-320,-465,-354,-475,-310,-306,-290,-293,-160,-150,-156,-152,-141,-150,-123,-146,-28,-275,-285,-290,-290,-290,-277,-290,-283,-304,-296,-285,-270,-281,-284,-284,-282,-282,-275,-264,-264,-275,-238,-235,-197,-322,-235,-270,-270,-406,-406,-377,-324,-461,-439,-461,-395,-528,-525,-471,-493,-559,-555,-542,-523,-500,-491,-462,-456,-507,-494,-495,-501,-497,-495,-483,-472,-485,-426,-472,-466,-572,-550,-485,-468,-436,-419,-562,-563,-562,-558,-552,-540,-541,-512,-703,-562,-866,-790,-4952,-1155,-1175,-1160,-770,-704,-1789,-1528,-1663,-1588,-1964,-1140,-1883,-812,-1741,-1106,-1506,-1325,-1443,-1499,-1439,-1367,-1464,-1448,-4570,-1442,-1700,-1912,-1868,-1152,-29984,-29985]} 1. Nf3 {[%emt 0:05:29]} d5 {[%emt 0:00:11]} 2. e3 {[%emt 0:00:15]} Nf6 {[%emt 0:00:18]} 3. c4 {[%emt 0:00:16]} e6 {[%emt 0:00:18]} 4. b3 {[%emt 0:00:07]} c5 {[%emt 0:00:18]} 5. Bb2 {[%emt 0:00:08]} Nc6 {[%emt 0:00:13]} 6. cxd5 {[%emt 0:00:06]} exd5 {[%emt 0:00:17]} 7. Bb5 {[%emt 0:00:15]} Bd6 {[%emt 0:00:17]} 8. d4 {[%emt 0:00:12] A13: English Opening: 1...e6.} cxd4 {[%emt 0:00:22]} 9. Nxd4 {[%emt 0:00:07]} O-O {[%emt 0:00:13]} 10. Nd2 {[%emt 0:01:06] The position is equal.} (10. Nxc6 bxc6 11. Bd3 Ng4 $15) 10... Nxd4 {[%emt 0:00:40]} 11. Bxd4 {[%emt 0:00:16]} Qa5 {[%emt 0:00:12] [#]} 12. Bxf6 $146 {[%emt 0:16:44]} (12. Be2 $11 {remains equal.}) ({Predecessor:} 12. Bd3 Bg4 13. f3 Be6 14. a3 Nd7 15. b4 Qd8 16. O-O Ne5 17. Bc2 Nc6 18. Bb2 {1-0 (69) Vachier Lagrave,M (2784)-Nihal,S (2620) Chess.com INT 2020}) 12... Qxb5 $17 {[%emt 0:18:40]} (12... gxf6 $6 13. Bd3 $11) 13. Bd4 {[%emt 0:00:42]} (13. Bc3 $15) 13... Bf5 $1 $19 {[%emt 0:02:58]} 14. Qe2 {[%emt 0:19:59]} Bd3 {[%emt 0:02:11]} 15. Qg4 {[%emt 0:00:02]} (15. a4 $17 Bxe2 16. axb5 Bxb5 17. O-O-O) 15... g6 $1 {[%emt 0:02:43][%cal Bg7g6,Bg6g5][%mdl 32] Active counter play!} 16. h4 $2 {[%emt 0:08:41]} (16. Bb2 {is tougher.} Rae8 17. Rc1 (17. Qd4 $2 Be5 $19)) 16... f5 {[%emt 0:09:41]} 17. Qg5 {[%emt 0:02:40]} f4 $1 {[%emt 0:02:55]} 18. h5 {[%emt 0:11:52]} fxe3 {[%emt 0:08:25]} 19. fxe3 {[%emt 0:03:27] Hoping for hxg6.} Rf5 $1 {[%emt 0:03:25]} 20. Qg4 {[%emt 0:02:16]} g5 {[%emt 0:01:52]} 21. Rc1 {[%emt 0:11:59]} (21. Rh3 {was the only defense.} Be4 22. Rf3 Bxf3 23. gxf3) 21... Raf8 {[%emt 0:06:08]} 22. Bc3 {[%emt 0:09:50]} Re8 {[%emt 0:19:25]} 23. Rh3 {[%emt 0:04:27]} (23. Qd4 $2 Be5 24. Qa4 Bxc3 25. Rxc3 Rxe3+ 26. Kd1 Be2+ 27. Kc2 Rxc3+ 28. Kxc3 Qd3+ 29. Kb2 Qxd2+ $19) 23... Bf4 {[%emt 0:16:49] A strong pair of Bishops.} 24. Bd4 {[%emt 0:05:56]} Qb4 {[%emt 0:01:57]} (24... Rf7 $1 $19 {...Bf5 is the strong threat.} 25. Rc5 Qb4) 25. Kd1 $17 {[%emt 0:05:38] [#]} Bxe3 $1 {[%emt 0:01:12][%mdl 512]} 26. Rxe3 {[%emt 0:00:46]} Rxe3 $40 {[%emt 0:00:22][%mdl 192] Pin. Black attacks with force. Dancing on a razor blade.} 27. Rc8+ {[%emt 0:01:45]} Kf7 {[%emt 0:00:19][%cal Of5f1,Bg8f7,Bf7e8,Be8e7][%mdl 32]} 28. Nf3 {[%emt 0:03:04]} Re8 {[%emt 0:09:57]} (28... h6 $1 $17 {[%cal Od3e4] Threatens to win with ...Be4!} 29. Rh8 Rexf3 30. Rh7+ (30. gxf3 Be4 $17) 30... Ke8 31. Rh8+ (31. gxf3 Be4 $17) 31... Kd7 32. gxf3 Be4 $1 {[%mdl 512]} 33. fxe4 (33. Bc5 $2 Qxc5 34. fxe4 dxe4 $19) 33... Qxd4+ 34. Ke2 Qf2+ 35. Kd3 dxe4+ 36. Kxe4 Qe1+ 37. Kd3 Qe6 38. Qa4+ Kd6 39. Rd8+ Kc7) 29. Rxe8 {[%emt 0:01:16]} (29. Rc7+ $11 Re7 30. Rc3) 29... Kxe8 $19 {[%emt 0:00:32]} 30. Qg3 {[%emt 0:00:16] [#]} Rf4 $1 {[%emt 0:06:22]} 31. Qxg5 {[%emt 0:00:30] [#]} Qe7 $1 {[%emt 0:00:16]} 32. Qxe7+ {[%emt 0:00:48]} Kxe7 {[%emt 0:00:04]} 33. Bxa7 {[%emt 0:00:28][%mdl 4096] Endgame KRB-KBN} Bf1 {[%emt 0:01:08]} 34. Bc5+ {[%emt 0:00:20]} Ke8 {[%emt 0:00:25]} 35. Be3 {[%emt 0:00:46]} Re4 {[%emt 0:00:47]} ({And not} 35... Bxg2 36. Bxf4 Bxf3+ 37. Kd2 $11) 36. Kd2 {[%emt 0:00:19]} Bxg2 {[%emt 0:00:21]} 37. Ng5 {[%emt 0:00:36]} Re7 {[%emt 0:00:17]} 38. h6 {[%emt 0:00:04]} Be4 {[%emt 0:00:38]} 39. Bd4 {[%emt 0:00:06]} Bg6 {[%emt 0:00:30]} 40. a4 {[%emt 0:00:27]} Rc7 {[%emt 0:00:32]} 41. Bc3 {[%emt 0:31:17]} (41. Bg7 $142) 41... Kd7 {[%emt 0:03:39]} 42. a5 {[%emt 0:00:00]} Rc8 {[%emt 0:01:35]} 43. b4 {[%emt 0:00:00]} (43. Nf3 {was worth a try.} Be4 44. Nd4) 43... Rf8 {[%emt 0:06:12]} 44. Ke3 {[%emt 0:00:00]} Kc6 {[%emt 0:01:50]} 45. Be5 {[%emt 0:00:00]} (45. Bd2 {was called for.}) 45... Rf1 {[%emt 0:01:37]} 46. Nf3 {[%emt 0:00:00]} Rb1 {[%emt 0:01:53]} 47. Bc3 {[%emt 0:00:00]} Kb5 {[%emt 0:00:58]} 48. Bd2 {[%emt 0:00:00]} Rh1 {[%emt 0:06:22]} 49. Kd4 {[%emt 0:04:42]} Rh3 {[%emt 0:00:59]} 50. Ne5 {[%emt 0:00:00]} Be4 {[%emt 0:00:12]} 51. Be1 {[%emt 0:00:00]} Rxh6 {[%emt 0:00:50]} 52. Nf7 {[%emt 0:00:00]} Rg6 {[%emt 0:03:43]} 53. Ke5 {[%emt 0:00:00]} Bd3 {[%emt 0:01:49]} 54. Nd8 {[%emt 0:00:50]} Rg7 {[%emt 0:01:35]} 55. Ne6 {[%emt 0:00:21]} Rg1 {[%emt 0:01:45]} 56. Bf2 {[%emt 0:01:03]} Rg8 {[%emt 0:01:28]} 57. Be1 {[%emt 0:01:00]} Kc6 {[%emt 0:00:36]} 58. Nd4+ {[%emt 0:00:17]} Kd7 {[%emt 0:00:12]} 59. Bh4 {[%emt 0:00:52]} Rg4 {[%emt 0:01:02]} 60. Bf6 {[%emt 0:00:25]} Bc4 {[%emt 0:00:55]} 61. b5 {[%emt 0:00:36]} Rg2 {[%emt 0:00:22]} 62. a6 {[%emt 0:00:20]} bxa6 {[%emt 0:00:11]} 63. bxa6 {[%emt 0:00:01]} Ra2 {[%emt 0:00:13]} 64. a7 {[%emt 0:00:38]} Rxa7 {[%emt 0:00:13]} 65. Ne6 {[%emt 0:00:10]} Ra8 {[%emt 0:00:12]} 66. Ng7 {[%emt 0:00:41] Inhibits Re8+.} Ra2 {[%emt 0:00:28]} 67. Bg5 {[%emt 0:00:32]} Rh2 {[%emt 0:01:01] Inhibits Nh5. White must now prevent ...h6.} 68. Bf4 {[%emt 0:00:31]} Rh1 {[%emt 0:00:19]} 69. Nf5 {[%emt 0:00:53]} Rh5 {[%emt 0:01:18]} 70. Kf6 {[%emt 0:00:14]} Bd3 {[%emt 0:00:24]} 71. Ng7 {[%emt 0:00:45]} Rh1 {[%emt 0:00:26] aiming for ...Be4.} 72. Ne6 {[%emt 0:00:12]} Be4 {[%emt 0:00:39]} 73. Nd4 {[%emt 0:01:06]} Rd1 {[%emt 0:01:07]} 74. Ke5 {[%emt 0:00:11]} Rg1 {[%emt 0:00:42]} 75. Ne6 {[%emt 0:00:13]} Re1 {[%emt 0:00:51]} 76. Kf6 {[%emt 0:00:24]} Kc6 {[%emt 0:00:39]} 77. Bg3 {[%emt 0:00:48]} Rf1+ {[%emt 0:00:15]} 78. Ke5 {[%emt 0:00:21]} Kb5 {[%emt 0:00:17] And now ...Kc4 would win.} 79. Kd4 {[%emt 0:00:47]} Rd1+ {[%emt 0:00:11]} 80. Ke3 {[%emt 0:00:15]} Kc4 {[%emt 0:00:23]} 81. Ke2 {[%emt 0:00:57]} Rb1 {[%emt 0:00:28]} 82. Be5 {[%emt 0:00:13] Prevents d4.} Rb7 {[%emt 0:01:01] ( -> ...Re7)} 83. Ke3 {[%emt 0:00:16]} Re7 {[%emt 0:00:26] Weighted Error Value: White=0.48/Black=0.17 (very precise)} 0-1

[Event "101st Irish Championship 2022"]
[Site "Dublin"]
[Date "2022.07.05"]
[Round "2.4"]
[White "O'Connell, Gerard"]
[Black "Pang, Khai Jie Ryan"]
[Result "1/2-1/2"]
[ECO "A57"]
[WhiteElo "2052"]
[BlackElo "1841"]
[Annotator "TA"]
[PlyCount "87"]
[EventDate "2022.07.05"]
[EventType "swiss"]
[EventCountry "IRL"]
[SourceTitle "playchess.com"]
[Source "ChessBase"]
[SourceQuality "1"]
[TimeControl "40/6300+30:1800+30"]

{[%evp 9,87,41,29,15,3,18,27,35,28,24,33,16,0,-10,-2,0,4,-25,-24,-31,-35,-32,-26,-31,-25,-35,-36,-38,-2,-43,-32,-57,-34,-40,-33,-31,0,0,26,0,22,0,16,0,0,0,60,46,64,69,62,73,100,91,123,-6,-5,-8,0,0,0,0,0,0,0,0,0,0,0,0,0,-8,-9,-9,-9,-9,-16,-16,0,-16]} 1. d4 {[%emt 0:00:03]} Nf6 {[%emt 0:00:24]} 2. c4 {[%emt 0:00:12]} c5 {[%emt 0:00:14]} 3. d5 {[%emt 0:00:12]} b5 {[%emt 0:00:16]} 4. Nf3 {[%emt 0:00:49]} b4 {[%emt 0:00:36]} 5. Nbd2 {[%emt 0:00:41]} g6 {[%emt 0:00:23]} 6. b3 {[%emt 0:00:06] A57: Benko/Volga Gambit.} Bg7 {[%emt 0:01:07][%cal Of6d5]} 7. Bb2 {[%emt 0:00:10]} d6 {[%emt 0:01:44]} 8. g3 {[%emt 0:00:34] White has an edge.} O-O {[%emt 0:01:21]} 9. Bg2 {[%emt 0:00:13]} a5 {[%emt 0:01:38]} 10. a4 {[%emt 0:03:04]} Ra7 {[%emt 0:00:48]} 11. O-O {[%emt 0:00:19]} e6 {[%emt 0:02:32]} 12. dxe6 {[%emt 0:10:27]} Bxe6 {[%emt 0:02:34]} 13. e4 {[%emt 0:25:16] [#]} Bg4 $146 {[%emt 0:10:57]} ({Predecessor:} 13... Nc6 14. Qc2 Re7 15. Rad1 Qc7 16. Rfe1 Bc8 17. Nf1 Bb7 18. Ne3 Ne5 19. Nxe5 dxe5 {1-0 (41) Palo,D (2163)-Skytte,R (2346) Aalborg 2000}) 14. Qc2 {[%emt 0:02:10]} Nc6 {[%emt 0:00:25]} 15. h3 {[%emt 0:00:53] [#] And now Bxf6 would win.} Bc8 {[%emt 0:07:03][%cal Bg4c8,Bc8b7,Bb7c6][%mdl 32]} 16. Rad1 {[%emt 0:08:05]} Re8 {[%emt 0:02:14]} 17. Rfe1 {[%emt 0:00:32]} Rae7 {[%emt 0:01:59]} 18. Kh2 {[%emt 0:03:56]} Qc7 {[%emt 0:03:20]} 19. Ba1 {[%emt 0:02:44]} Bb7 {[%emt 0:01:50]} 20. Re2 {[%emt 0:02:57]} Nb8 {[%emt 0:03:18][%cal Rb7e4]} 21. Ne1 {[%emt 0:12:55]} Nbd7 {[%emt 0:02:35][%cal Od6d5]} 22. Nd3 {[%emt 0:06:47]} Bc6 {[%emt 0:04:50]} ({Much weaker is} 22... Bxe4 23. Nxe4 Nxe4 24. Bxe4 Bxa1 25. Rxa1 $11) 23. Rde1 {[%emt 0:13:04]} Qb7 {[%emt 0:03:01]} (23... Nh5 $5 {[%cal Rg7a1]}) 24. f3 {[%emt 0:06:17]} Qc7 {[%emt 0:03:39]} 25. Nf1 {[%emt 0:01:47]} Nh5 {[%emt 0:08:31]} 26. Bxg7 {[%emt 0:00:09]} Nxg7 {[%emt 0:00:17]} 27. Ne3 {[%emt 0:00:40]} Nb6 {[%emt 0:04:23]} ({Black should play} 27... Ne6 $11) 28. Nf4 $14 {[%emt 0:02:52]} Ne6 {[%emt 0:01:14]} 29. Nxe6 {[%emt 0:00:24]} Rxe6 {[%emt 0:00:27]} 30. h4 {[%emt 0:00:33]} h5 {[%emt 0:04:02]} 31. Bh3 {[%emt 0:00:49]} Re5 {[%emt 0:00:18]} 32. Nd5 {[%emt 0:01:27]} (32. Rd1 $16) 32... Bxd5 $11 {[%emt 0:07:13] The position is equal.} 33. exd5 {[%emt 0:00:44]} Nd7 {[%emt 0:00:19]} 34. Bxd7 {[%emt 0:03:51]} Rxe2+ {[%emt 0:06:34]} 35. Rxe2 {[%emt 0:00:10]} Qxd7 {[%emt 0:00:17][%mdl 4096] Endgame KQR-KQR} 36. Re4 {[%emt 0:01:35]} Qd8 {[%emt 0:01:41]} 37. Kg2 {[%emt 0:02:08]} Rxe4 {[%emt 0:00:23]} 38. Qxe4 {[%emt 0:00:11] KQ-KQ} Qf6 {[%emt 0:00:16] [#] Hoping for ...Qb2+.} 39. Qe3 {[%emt 0:00:34]} Qb2+ {[%emt 0:00:43]} 40. Kf1 {[%emt 0:00:15]} Kg7 {[%emt 0:00:27]} 41. Ke1 {[%emt 0:34:27]} Qb1+ {[%emt 0:43:15]} 42. Ke2 {[%emt 0:00:00]} Qc2+ {[%emt 0:00:00]} 43. Ke1 {[%emt 0:00:00]} Qb1+ {[%emt 0:00:00]} 44. Ke2 {[%emt 0:00:00] Weighted Error Value: White=0.12 (very precise) /Black=0.10 (very precise)} 1/2-1/2

[Event "101st Irish Championship 2022"]
[Site "Dublin"]
[Date "2022.07.05"]
[Round "2.5"]
[White "Li, Henry"]
[Black "Ivanov, Andrey A."]
[Result "1-0"]
[ECO "B23"]
[WhiteElo "2319"]
[BlackElo "2180"]
[Annotator "TA"]
[PlyCount "89"]
[EventDate "2022.07.05"]
[EventType "swiss"]
[EventCountry "IRL"]
[SourceTitle "playchess.com"]
[Source "ChessBase"]
[SourceQuality "1"]
[TimeControl "40/6300+30:1800+30"]

{[%evp 14,89,-12,-19,28,28,21,26,39,0,19,-1,4,-25,0,-8,-7,-9,14,-14,20,-40,0,-14,0,-12,38,32,37,36,85,-20,-23,-25,32,32,32,32,32,32,32,25,25,0,0,0,104,104,112,91,112,112,150,133,128,149,394,391,406,376,413,394,404,397,371,341,564,570,720,688,2011,1822,1590,1717,1739,1675,1260,1061]} 1. e4 {[%emt 0:00:02]} c5 {[%emt 0:01:55]} 2. Nc3 {[%emt 0:00:08]} g6 {[%emt 0:00:20]} 3. f4 {[%emt 0:02:23]} Bg7 {[%emt 0:00:11]} 4. Nf3 {[%emt 0:00:06]} Nc6 {[%emt 0:00:06]} 5. Bb5 {[%emt 1:45:21]} Nd4 {[%emt 0:00:07]} 6. O-O {[%emt 0:00:00]} Nxb5 {[%emt 0:03:05]} 7. Nxb5 {[%emt 0:00:00]} a6 {[%emt 0:00:02]} 8. Nc3 {[%emt 0:00:00]} e6 {[%emt 0:00:48] B23: Closed Sicilian: Lines without g3.} (8... b5 $142) 9. e5 $11 {[%emt 0:00:00]} d5 {[%emt 0:01:33] Inhibits Ne4.} 10. d4 {[%emt 0:00:00]} cxd4 {[%emt 0:03:26] White has an edge.} 11. Nxd4 {[%emt 0:00:00]} Ne7 {[%emt 0:00:21]} 12. Kh1 {[%emt 0:00:00]} O-O {[%emt 0:09:29] [#]} 13. Qe2 $146 {[%emt 0:00:00]} ({Predecessor:} 13. Be3 b6 14. a4 Bb7 15. Qd2 Nc6 16. Nxc6 Bxc6 17. Ne2 Qc7 18. Nd4 Rfe8 19. a5 bxa5 20. Qxa5 {0-1 (68) Rodriguez Marquez,L (1421)-Matus,N (1766) Montevideo 2016}) 13... Nc6 {[%emt 0:06:32]} 14. Be3 {[%emt 0:00:00][%cal Bc1e3,Be3d4,Bd4c5][%mdl 32]} Nxd4 {[%emt 0:05:46]} 15. Bxd4 {[%emt 0:00:00]} f6 {[%emt 0:00:37]} 16. a4 {[%emt 0:00:00]} fxe5 {[%emt 0:00:57]} 17. fxe5 {[%emt 0:00:00]} ({White should play} 17. Bxe5 $11 Bf6 18. Bxf6 Qxf6 19. Qd2) 17... Qe7 {[%emt 0:00:37]} 18. Qe3 {[%emt 0:00:00]} Qc7 {[%emt 0:05:11]} 19. Rxf8+ {[%emt 0:00:00]} Kxf8 {[%emt 0:01:29]} (19... Bxf8 $11 20. Rf1 Bd7) 20. Bc5+ $14 {[%emt 0:00:00]} Kg8 {[%emt 0:00:35]} 21. Bd6 {[%emt 0:00:00]} Qc4 {[%emt 0:00:27]} (21... Qc6 $14) 22. Qd3 {[%emt 0:00:00] White is more active.} (22. b3 $16 Qc6 23. Rc1) 22... Qxd3 $11 {[%emt 0:02:09]} 23. cxd3 {[%emt 0:00:00]} Bf8 {[%emt 0:00:08]} (23... Bh6 $11) 24. Bxf8 $14 {[%emt 0:00:00]} Kxf8 {[%emt 0:00:19][%mdl 4096] Endgame KRB-KRN} 25. Ne2 {[%emt 0:00:00]} Ke7 {[%emt 0:00:51]} 26. Nd4 {[%emt 0:00:00]} Bd7 {[%emt 0:00:23]} 27. Kg1 {[%emt 0:00:00]} Rf8 {[%emt 0:00:23]} 28. b3 {[%emt 0:00:00]} Rf4 {[%emt 0:01:03]} 29. Nc2 {[%emt 0:00:00]} b5 {[%emt 0:00:56]} (29... Rf5 $11) 30. a5 $1 $16 {[%emt 0:00:00]} Rf5 {[%emt 0:02:25]} 31. Re1 {[%emt 0:00:00]} Rf8 {[%emt 0:00:35]} 32. Nb4 {[%emt 0:00:00]} Rc8 {[%emt 0:00:41] [#]} 33. Kf2 $1 {[%emt 0:00:00] Ke3 is the strong threat.} Rc3 {[%emt 0:00:31] [#]} 34. Rb1 {[%emt 0:00:00] Strongly threatening Kf3.} Bc8 $2 {[%emt 0:00:31] This costs Black the game.} (34... d4 $16) 35. Ke3 $18 {[%emt 0:00:00]} Bb7 {[%emt 0:00:48]} 36. g3 {[%emt 0:00:00]} Rc8 {[%emt 0:02:52]} 37. Kd4 {[%emt 0:00:00]} Rc7 {[%emt 0:02:37]} 38. Rf1 {[%emt 0:00:00]} Rc8 {[%emt 0:01:49]} 39. h4 {[%emt 0:00:00]} Rd8 $2 {[%emt 0:10:20]} (39... Rc7 {might work better.} 40. g4 Rc8) 40. Kc5 {[%emt 0:01:00] White is clearly winning.} Rb8 {[%emt 0:00:58]} 41. Kb6 {[%emt 0:34:23]} d4 {[%emt 0:30:41]} 42. Kc7 {[%emt 0:01:24]} Bg2 {[%emt 0:00:38]} 43. Kxb8 {[%emt 0:01:29]} Bxf1 {[%emt 0:00:06]} 44. Kb7 {[%emt 0:00:20]} Kd7 {[%emt 0:00:16]} 45. Nxa6 {[%emt 0:00:58] Weighted Error Value: White=0.15 (very precise) /Black=0.38} 1-0

[Event "101st Irish Championship 2022"]
[Site "Dublin"]
[Date "2022.07.05"]
[Round "2.6"]
[White "Goss, Alex"]
[Black "Flynn, Jacob"]
[Result "0-1"]
[ECO "B31"]
[WhiteElo "1859"]
[BlackElo "2199"]
[Annotator "TA"]
[PlyCount "50"]
[EventDate "2022.07.05"]
[EventType "swiss"]
[EventCountry "IRL"]
[SourceTitle "playchess.com"]
[Source "ChessBase"]
[SourceQuality "1"]
[TimeControl "40/6300+30:1800+30"]

{[%evp 13,50,1,7,8,6,4,12,0,-14,-6,-26,-25,-22,-24,-30,-132,-125,-174,-158,-158,-57,-170,-87,-159,-161,-189,-86,-173,-173,-254,-210,-462,-481,-583,-603,-680,-520,-594,-545]} 1. e4 {[%emt 0:00:01]} c5 {[%emt 0:00:11]} 2. Nf3 {[%emt 0:00:04]} Nc6 {[%emt 0:00:05]} 3. Bb5 {[%emt 0:00:04]} g6 {[%emt 0:00:04]} 4. Bxc6 {[%emt 0:00:05]} dxc6 {[%emt 0:00:03]} 5. h3 {[%emt 0:00:17]} e5 {[%emt 0:00:05]} 6. d3 {[%emt 0:00:05]} f6 {[%emt 0:03:23]} 7. Be3 {[%emt 0:01:00]} Nh6 {[%emt 0:00:25]} 8. a4 {[%emt 0:01:17] B31: Sicilian: 2...Nc6 3 Bb5 g6.} Be6 {[%emt 0:03:29]} 9. a5 {[%emt 0:03:50]} Nf7 {[%emt 0:03:33]} 10. Nbd2 {[%emt 0:02:54] The position is equal.} f5 {[%emt 0:13:08] [#] White must now prevent ...f4.} 11. g3 $146 {[%emt 0:07:38] Against f4} ({Predecessor:} 11. exf5 gxf5 12. Qe2 Qf6 13. Nc4 Bxc4 14. dxc4 O-O-O 15. O-O Rg8 16. Rfd1 Bd6 17. b4 {0-1 (45) Agdelen,H (2302)-Usun,T (2052) Antalya 2018}) 11... Qf6 {[%emt 0:05:23] And now ...f4 would win.} 12. exf5 {[%emt 0:03:57]} gxf5 {[%emt 0:00:13]} 13. Qe2 {[%emt 0:00:18]} O-O-O {[%emt 0:08:20]} 14. Rb1 {[%emt 0:09:12]} (14. O-O-O $11 {remains equal.}) 14... Kb8 $17 {[%emt 0:05:44]} 15. Nc4 {[%emt 0:03:10]} (15. h4 $17) 15... Bxc4 {[%emt 0:04:42]} 16. dxc4 {[%emt 0:00:11]} e4 {[%emt 0:04:06]} (16... f4 $17 17. Bd2 fxg3 18. fxg3 Qg6) 17. Nd2 {[%emt 0:03:44]} ({White should try} 17. Nh4 $1 $15) 17... Ng5 {[%emt 0:22:50]} (17... h5 $19 18. Bf4+ Bd6) 18. Bxg5 {[%emt 0:08:03]} (18. Kd1 $142) 18... Qxg5 {[%emt 0:00:08]} 19. Qe3 {[%emt 0:00:14]} Qh5 {[%emt 0:08:09]} (19... Qg6 $19 {Hoping for ...Bh6.} 20. Nf1 Rd4) 20. Qe2 {[%emt 0:01:22]} (20. g4 $17 {might work better.} fxg4 21. Nxe4) 20... Qg6 $19 {[%emt 0:02:18][%cal Oe4e3]} 21. Nb3 {[%emt 0:02:28]} (21. Nf1 {keeps fighting.}) 21... e3 {[%emt 0:07:46][%cal Be4e3,Be3f2][%mdl 32] [#] aiming for ...Bd6.} 22. Qf3 $2 {[%emt 0:06:54]} (22. O-O {was necessary.} exf2+ 23. Qxf2) 22... f4 {[%emt 0:03:49] Strongly threatening ...exf2+. Black is clearly winning.} 23. Rc1 {[%emt 0:06:41]} ({Avoid the trap} 23. Qxf4+ $2 Bd6 24. Qxe3 Rhe8 25. Qxe8 Qxe8+ 26. Kf1 Qe4) 23... Bd6 {[%emt 0:07:23][%cal Rf4g3]} 24. g4 {[%emt 0:08:56]} Rde8 {[%emt 0:00:53]} 25. a6 {[%emt 0:01:21]} exf2+ {[%emt 0:00:34] Weighted Error Value: White=0.61/Black=0.26 (precise)} 0-1

[Event "101st Irish Championship 2022"]
[Site "Dublin"]
[Date "2022.07.05"]
[Round "2.7"]
[White "O`cuilleanain, Oisin"]
[Black "Carroll, Peter"]
[Result "0-1"]
[ECO "B51"]
[WhiteElo "1936"]
[BlackElo "2116"]
[Annotator "TA"]
[PlyCount "66"]
[EventDate "2022.07.05"]
[EventType "swiss"]
[EventCountry "IRL"]
[SourceTitle "playchess.com"]
[Source "ChessBase"]
[SourceQuality "1"]
[TimeControl "40/6300+30:1800+30"]

{[%evp 14,66,14,16,11,6,16,9,24,3,7,15,22,-22,-21,-23,0,0,-1,-71,-84,-68,-43,-62,-53,-85,-85,-85,-107,-75,-80,-154,-21,-21,0,0,0,-116,-118,-181,-97,-227,-140,-132,-121,-246,-210,-307,-176,-507,-489,-629,-597,-869,-882]} 1. e4 {[%emt 0:00:01]} c5 {[%emt 0:00:01]} 2. Nf3 {[%emt 0:00:08]} d6 {[%emt 0:00:53]} 3. Bb5+ {[%emt 0:00:30]} Nd7 {[%emt 0:00:20]} 4. O-O {[%emt 0:00:34]} a6 {[%emt 0:03:07]} 5. Bxd7+ {[%emt 0:00:49]} Bxd7 {[%emt 0:00:06]} 6. d4 {[%emt 0:00:09]} cxd4 {[%emt 0:00:38]} 7. Qxd4 {[%emt 0:00:05]} e5 {[%emt 0:00:52]} 8. Qd3 {[%emt 0:00:09]} Rc8 {[%emt 0:01:13] B51: Sicilian: Moscow Variation (3 Bb5+) without 3...Bd7.} 9. c4 {[%emt 0:01:23] Inhibits Bb5.} b5 {[%emt 0:01:53]} 10. Nfd2 {[%emt 0:01:55]} Nf6 {[%emt 0:05:30][%cal Bg8f6,Bf6h5,Bh5f4,Bf4e2,Be2c1][%mdl 32] The position is equal.} 11. Nc3 {[%emt 0:09:39][%cal Rc4b5]} Qb6 {[%emt 0:09:42]} 12. b3 {[%emt 0:19:35]} Be7 {[%emt 0:00:49]} 13. Bb2 {[%emt 0:06:09]} O-O {[%emt 0:00:17] [#]} 14. Rfc1 $146 {[%emt 0:00:54]} ({Predecessor:} 14. Rac1 Rfd8 15. Kh1 Bf8 16. f4 exf4 17. Rxf4 Ng4 18. Qe2 Qe3 19. Qxe3 Nxe3 20. h3 g6 21. Rf3 Bh6 22. Re1 Nc2 23. Rd1 Be6 {0-1 (23) Ramezani,M (2143)-Mosadeghpour,M (2355) Lorestan 2019}) 14... b4 {[%emt 0:02:50]} 15. Nd1 {[%emt 0:06:47]} Nh5 {[%emt 0:09:38]} 16. Bxe5 {[%emt 0:03:58]} (16. Ne3 $11 {keeps the balance.}) 16... dxe5 $17 {[%emt 0:00:02]} 17. Qxd7 {[%emt 0:00:02]} Bc5 {[%emt 0:00:29] [#] Threatens to win with ...Rcd8.} (17... Bg5 $5 {[%cal Rh5f6]} 18. Qh3 Bxd2 19. Qxh5 Bxc1 20. Rxc1 Qd4 $15) 18. Nf1 {[%emt 0:07:54]} Nf4 {[%emt 0:07:06][%cal Oc5f2] Hoping for ...Bxf2+!} 19. Nde3 {[%emt 0:02:10]} Ne2+ {[%emt 0:01:09]} 20. Kh1 {[%emt 0:00:05]} Nxc1 {[%emt 0:03:33] 0x0.0002dca21e89dp-1022s more active pieces.} 21. Rxc1 {[%emt 0:00:05]} Rcd8 {[%emt 0:03:57]} 22. Qg4 {[%emt 0:01:37]} (22. Qf5 $142) 22... Bxe3 {[%emt 0:01:17]} ({Black should try} 22... Qg6 $17 {White must now prevent ...Qxg4.} 23. Qh4 Rd3) 23. Nxe3 $11 {[%emt 0:00:04]} Rd2 {[%emt 0:00:26]} 24. c5 {[%emt 0:04:54]} Qe6 {[%emt 0:03:50]} 25. Nf5 {[%emt 0:13:37]} (25. h3 $1 $11) 25... g6 $36 {[%emt 0:03:03][%mdl 2048] Black is in control.} 26. c6 {[%emt 0:00:12] [#]} (26. h3 $17) 26... Kh8 {[%emt 0:04:53]} (26... Rxa2 27. c7 $15 (27. Nh6+ $2 Kg7 $19)) ({Better is} 26... Rd3 $1 $19 {And now ...Rc3 would win.} 27. h3 Rc3) 27. Ne3 {[%emt 0:00:30]} (27. Qg5 $17 Rd3 28. Ne7 (28. Qh6 Rg8 $17)) 27... Qxg4 {[%emt 0:02:42]} (27... Rxf2 28. c7 Rc8 29. Qh4 $15) (27... Rxa2 28. Qd1 $15) 28. Nxg4 $19 {[%emt 0:00:02][%mdl 4096] Endgame KRR-KRN} Rc8 {[%emt 0:03:05][%cal Oc8c6] Strongly threatening ...Rxc6!} (28... Rxa2 29. g3 $17) 29. Ne3 {[%emt 0:04:59]} (29. g3 $17 {was called for.}) 29... Rc7 {[%emt 0:02:04]} ({And not} 29... Rxf2 30. Kg1 Rxa2 31. Nd5 $11) 30. Rc5 {[%emt 0:03:18]} (30. g3 $142 Rd6 31. Nd5 Rcxc6 32. Rxc6 Rxc6 33. Nxb4) 30... f6 {[%emt 0:04:17]} ({Worse is} 30... Rxa2 31. h3 $11) ({But not} 30... Rxf2 $2 31. Kg1 Rf6 32. Rxe5 Rcxc6 33. Nc4) (30... Rd6 $142 31. g3 Rcxc6) 31. Rd5 $2 {[%emt 0:01:55]} (31. g3 {is a better chance.} Rd6 32. Nd5 Rcxc6 33. Ra5) 31... Rxa2 {[%emt 0:02:57] Black is clearly winning.} 32. g3 {[%emt 0:01:59] aiming for Rd8+.} Rxc6 {[%emt 0:01:03]} 33. Rd7 {[%emt 0:00:06]} Rxf2 {[%emt 0:00:41] Weighted Error Value: White=0.72/Black=0.24 (precise)} 0-1